fUSD/lending_fUSD_20260512
["ID","MTS","AMOUNT","RATE_DAILY","PERIOD"]
[422081082,1778555454000,-151.73446321,0.000411,120]
[422081077,1778555454000,-151.73446321,0.000411,120]
[422081088,1778555454000,-159.32118637,0.000411,120]
[422081084,1778555454000,-151.73,0.000411,120]
[422081087,1778555454000,-159.32118637,0.000411,120]
[422081086,1778555454000,-159.32118637,0.000411,120]
[422081089,1778555454000,-159.32118637,0.000411,120]
[422081085,1778555454000,-159.32118637,0.000411,120]
[422081083,1778555454000,-151.73446321,0.000411,120]
[422081090,1778555454000,-159.32118637,0.000411,120]
[422081091,1778555454000,-159.32118637,0.000411,120]
[422081081,1778555454000,-151.73446321,0.000411,120]
[422081092,1778555454000,-159.32118637,0.000411,120]
[422081164,1778555455000,-151.0,0.00041158,120]
[422081154,1778555455000,-900.0,0.00041123,30]
[422081149,1778555455000,-900.0,0.00041123,30]
[422081146,1778555455000,-900.0,0.00041123,30]
[422081150,1778555455000,-900.0,0.00041123,30]
[422081152,1778555455000,-900.0,0.00041123,30]
[422081148,1778555455000,-900.0,0.00041123,30]
[422081140,1778555455000,-900.0,0.00041123,30]
[422081165,1778555455000,-151.0,0.00041158,120]
[422081143,1778555455000,-900.0,0.00041123,30]
[422081153,1778555455000,-900.0,0.00041123,30]
[422081171,1778555455000,-319.65253,0.00041158,120]
[422081160,1778555455000,-151.0,0.00041158,120]
[422081159,1778555455000,-151.0,0.00041158,120]
[422081158,1778555455000,-151.0,0.00041158,120]
[422081157,1778555455000,-500.0,0.00041152,112]
[422081155,1778555455000,-170.0,0.00041123,30]
[422081162,1778555455000,-151.0,0.00041158,120]
[422081163,1778555455000,-151.0,0.00041158,120]
[422081161,1778555455000,-151.0,0.00041158,120]
[422081168,1778555455000,-319.65253,0.00041158,120]
[422081166,1778555455000,-319.65253,0.00041158,120]
[422081145,1778555455000,-900.0,0.00041123,30]
[422081156,1778555455000,-22499.99,0.00041125,120]
[422081141,1778555455000,-900.0,0.00041123,30]
[422081120,1778555455000,-900.0,0.00041123,30]
[422081144,1778555455000,-900.0,0.00041123,30]
[422081173,1778555455000,-319.65253,0.00041158,120]
[422081119,1778555455000,-900.0,0.00041123,30]
[422081123,1778555455000,-900.0,0.00041123,30]
[422081124,1778555455000,-900.0,0.00041123,30]
[422081121,1778555455000,-900.0,0.00041123,30]
[422081122,1778555455000,-900.0,0.00041123,30]
[422081125,1778555455000,-900.0,0.00041123,30]
[422081126,1778555455000,-900.0,0.00041123,30]
[422081128,1778555455000,-900.0,0.00041123,30]
[422081138,1778555455000,-900.0,0.00041123,30]
[422081139,1778555455000,-900.0,0.00041123,30]
[422081127,1778555455000,-900.0,0.00041123,30]
[422081129,1778555455000,-900.0,0.00041123,30]
[422081130,1778555455000,-900.0,0.00041123,30]
[422081131,1778555455000,-900.0,0.00041123,30]
[422081132,1778555455000,-900.0,0.00041123,30]
[422081135,1778555455000,-900.0,0.00041123,30]
[422081133,1778555455000,-900.0,0.00041123,30]
[422081137,1778555455000,-900.0,0.00041123,30]
[422081134,1778555455000,-900.0,0.00041123,30]
[422081136,1778555455000,-900.0,0.00041123,30]
[422081151,1778555455000,-900.0,0.00041123,30]
[422081142,1778555455000,-900.0,0.00041123,30]
[422081147,1778555455000,-900.0,0.00041123,30]
[422081174,1778555455000,-319.65253,0.00041158,120]
[422081217,1778555455000,-151.0,0.0004117,120]
[422081170,1778555455000,-319.65253,0.00041158,120]
[422081192,1778555455000,-3175.820433,0.0004117,120]
[422081213,1778555455000,-151.0,0.0004117,120]
[422081203,1778555455000,-474.041222,0.0004117,7]
[422081204,1778555455000,-402.845025,0.0004117,7]
[422081205,1778555455000,-474.041222,0.0004117,7]
[422081202,1778555455000,-402.845025,0.0004117,7]
[422081208,1778555455000,-1257.887749,0.0004117,30]
[422081210,1778555455000,-1257.887749,0.0004117,30]
[422081206,1778555455000,-402.845025,0.0004117,7]
[422081212,1778555455000,-1257.887749,0.0004117,30]
[422081209,1778555455000,-151.0,0.0004117,30]
[422081211,1778555455000,-151.0,0.0004117,30]
[422081214,1778555455000,-1257.887749,0.0004117,30]
[422081216,1778555455000,-151.0,0.0004117,30]
[422081223,1778555455000,-24029.49024116,0.00041173,7]
[422081219,1778555455000,-451.95924,0.0004117,120]
[422081218,1778555455000,-151.0,0.0004117,120]
[422081220,1778555455000,-1359.434225,0.0004117,120]
[422081221,1778555455000,-151.0,0.00041171,14]
[422081224,1778555455000,-35.38167824,0.00041174,120]
[422081215,1778555455000,-171.81453,0.0004117,120]
[422081222,1778555455000,-155.20974893,0.00041171,14]
[422081172,1778555455000,-319.65253,0.00041158,120]
[422081201,1778555455000,-402.845025,0.0004117,7]
[422081193,1778555455000,-151.0,0.0004117,120]
[422081207,1778555455000,-474.041222,0.0004117,7]
[422081197,1778555455000,-334.558121,0.0004117,14]
[422081195,1778555455000,-151.0,0.0004117,120]
[422081169,1778555455000,-319.65253,0.00041158,120]
[422081167,1778555455000,-319.65253,0.00041158,120]
[422081176,1778555455000,-319.65253,0.00041158,120]
[422081175,1778555455000,-319.65253,0.00041158,120]
[422081188,1778555455000,-246.469525,0.0004117,120]
[422081178,1778555455000,-319.65253,0.00041158,120]
[422081180,1778555455000,-319.65253,0.00041158,120]
[422081179,1778555455000,-319.65253,0.00041158,120]
[422081181,1778555455000,-319.652535,0.00041158,120]
[422081187,1778555455000,-2723.8346502,0.0004117,30]
[422081182,1778555455000,-863.05,0.00041158,10]
[422081177,1778555455000,-319.65253,0.00041158,120]
[422081199,1778555455000,-334.558121,0.0004117,14]
[422081194,1778555455000,-334.558121,0.0004117,14]
[422081183,1778555455000,-15842.92640856,0.0004117,30]
[422081198,1778555455000,-153.54189,0.0004117,120]
[422081196,1778555455000,-334.558121,0.0004117,14]
[422081191,1778555455000,-3175.820433,0.0004117,120]
[422081200,1778555455000,-474.041222,0.0004117,7]
[422081189,1778555455000,-3175.820433,0.0004117,120]
[422081185,1778555455000,-45384.73647738,0.0004117,30]
[422081186,1778555455000,-18305.19740295,0.0004117,30]
[422081184,1778555455000,-62577.86883054,0.0004117,30]
[422081190,1778555455000,-3175.820433,0.0004117,120]
[422081244,1778555456000,-408.322405,0.00041174,120]
[422081239,1778555456000,-408.322405,0.00041174,120]
[422081241,1778555456000,-408.322405,0.00041174,120]
[422081242,1778555456000,-408.322405,0.00041174,120]
[422081245,1778555456000,-408.322405,0.00041174,120]
[422081243,1778555456000,-408.322405,0.00041174,120]
[422081248,1778555456000,-408.322405,0.00041174,120]
[422081249,1778555456000,-408.322405,0.00041174,120]
[422081247,1778555456000,-408.322405,0.00041174,120]
[422081240,1778555456000,-408.322405,0.00041174,120]
[422081246,1778555456000,-408.322405,0.00041174,120]
[422081238,1778555456000,-408.322405,0.00041174,120]
[422081226,1778555456000,-115.61832176,0.00041174,120]
[422081235,1778555456000,-408.322405,0.00041174,120]
[422081236,1778555456000,-408.322405,0.00041174,120]
[422081233,1778555456000,-408.322405,0.00041174,120]
[422081234,1778555456000,-408.322405,0.00041174,120]
[422081232,1778555456000,-408.322405,0.00041174,120]
[422081230,1778555456000,-151.0,0.00041174,120]
[422081231,1778555456000,-154.040383,0.00041174,120]
[422081227,1778555456000,-151.0,0.00041174,120]
[422081229,1778555456000,-151.0,0.00041174,120]
[422081228,1778555456000,-151.0,0.00041174,120]
[422081225,1778555456000,-151.0,0.00041096,120]
[422081250,1778555456000,-408.322405,0.00041174,120]
[422081237,1778555456000,-408.322405,0.00041174,120]
[422081251,1778555456000,-408.3224,0.00041174,120]
[422081258,1778555456000,-18924.32939999,0.00041174,30]
[422081254,1778555456000,-158.0,0.00041174,120]
[422081252,1778555456000,-151.0,0.00041174,120]
[422081280,1778555456000,-175.56571433,0.00030487,2]
[422081279,1778555456000,-152.0,0.00026804,7]
[422081277,1778555456000,-152.0,0.00020442,2]
[422081278,1778555456000,-152.0,0.00026775,7]
[422081275,1778555456000,-1358.20293841,0.00041174,30]
[422081276,1778555456000,-713.67957342,0.00041174,30]
[422081273,1778555456000,-815.21024951,0.0004117,120]
[422081271,1778555456000,-151.0,0.0004117,120]
[422081267,1778555456000,-1359.434225,0.00041096,120]
[422081270,1778555456000,-151.0,0.0004117,120]
[422081269,1778555456000,-1359.434225,0.00041096,120]
[422081272,1778555456000,-451.95924,0.0004117,120]
[422081274,1778555456000,-544.22397549,0.0004117,120]
[422081266,1778555456000,-451.95924,0.00041096,120]
[422081253,1778555456000,-528.7027166,0.00041174,120]
[422081268,1778555456000,-451.95924,0.00041096,120]
[422081259,1778555456000,-1165.45033526,0.00041174,30]
[422081257,1778555456000,-2000.0,0.00041174,120]
[422081255,1778555456000,-175.74682945,0.00041174,120]
[422081256,1778555456000,-495.13694843,0.00041174,120]
[422081264,1778555456000,-151.0,0.0004095,30]
[422081262,1778555456000,-300.0,0.00037058,2]
[422081263,1778555456000,-151.0,0.00039766,30]
[422081261,1778555456000,-157.0,0.00032594,30]
[422081265,1778555456000,-151.0,0.00041096,120]
[422081260,1778555456000,-3842.2,0.00027397,10]
[422081297,1778555457000,-11195.77571278,0.00041174,30]
[422081298,1778555457000,-235.55,0.00041178,120]
[422081307,1778555457000,-500.0,0.0004118,53]
[422081299,1778555457000,-500.0,0.0004118,30]
[422081304,1778555457000,-557.5788265,0.0004118,53]
[422081306,1778555457000,-1148.61238259,0.0004118,53]
[422081308,1778555457000,-500.0,0.0004118,54]
[422081317,1778555457000,-151.0,0.0004118,120]
[422081311,1778555457000,-500.0,0.0004118,54]
[422081309,1778555457000,-151.0,0.0004118,53]
[422081316,1778555457000,-666.72878,0.0004118,30]
[422081310,1778555457000,-1191.11104075,0.0004118,54]
[422081312,1778555457000,-500.0,0.0004118,120]
[422081314,1778555457000,-1235.18214925,0.0004118,120]
[422081313,1778555457000,-151.0,0.0004118,54]
[422081301,1778555457000,-1107.63007,0.0004118,30]
[422081318,1778555457000,-464.05848484,0.0004118,53]
[422081302,1778555457000,-500.0,0.0004118,30]
[422081283,1778555457000,-1117.14215031,0.00037058,2]
[422081303,1778555457000,-500.0,0.0004118,53]
[422081315,1778555457000,-500.0,0.0004118,120]
[422081281,1778555457000,-157.0,0.00033594,30]
[422081289,1778555457000,-853.9665,0.00041096,120]
[422081282,1778555457000,-157.0,0.00034594,30]
[422081284,1778555457000,-300.0,0.00037058,2]
[422081288,1778555457000,-164.75923862,0.00041096,120]
[422081287,1778555457000,-451.95924,0.00041096,120]
[422081286,1778555457000,-151.0,0.00041096,120]
[422081285,1778555457000,-151.0,0.00041096,120]
[422081290,1778555457000,-340.70848638,0.00041096,120]
[422081293,1778555457000,-151.0,0.00041096,120]
[422081294,1778555457000,-451.95924,0.0004117,120]
[422081291,1778555457000,-451.95924,0.00041096,120]
[422081292,1778555457000,-1359.434225,0.00041096,120]
[422081295,1778555457000,-1359.434225,0.0004117,120]
[422081296,1778555457000,-1414.58775052,0.00041174,30]
[422081305,1778555457000,-151.0,0.0004118,30]
[422081300,1778555457000,-537.6845,0.0004118,30]
[422081320,1778555457000,-152.0,0.0004118,53]
[422081346,1778555457000,-200.92,0.00026084,2]
[422081322,1778555457000,-152.0,0.0004118,54]
[422081341,1778555457000,-451.95924,0.00041096,120]
[422081344,1778555457000,-200.92,0.00026027,2]
[422081345,1778555457000,-200.92,0.00026055,7]
[422081348,1778555457000,-144.37092604,0.00026113,2]
[422081347,1778555457000,-56.54907396,0.00026113,2]
[422081349,1778555457000,-2107.73017618,0.00030795,2]
[422081360,1778555457000,-274.94610452,0.0004117,120]
[422081350,1778555457000,-566.16612038,0.00030795,2]
[422081354,1778555457000,-451.95924,0.00041096,120]
[422081355,1778555457000,-1359.434225,0.00041096,120]
[422081352,1778555457000,-1094.29459015,0.00037058,2]
[422081351,1778555457000,-300.0,0.00037058,2]
[422081356,1778555457000,-1359.434225,0.00041096,120]
[422081358,1778555457000,-151.0,0.00041096,120]
[422081357,1778555457000,-151.0,0.00041096,120]
[422081319,1778555457000,-152.0,0.0004118,30]
[422081359,1778555457000,-151.0,0.0004117,120]
[422081342,1778555457000,-457.67947008,0.0004118,54]
[422081343,1778555457000,-778.22176752,0.0004118,30]
[422081353,1778555457000,-152.0,0.00041092,30]
[422081336,1778555457000,-151.0,0.0004118,120]
[422081325,1778555457000,-151.0,0.0004118,30]
[422081330,1778555457000,-162.380719,0.0004118,30]
[422081340,1778555457000,-151.0,0.00041096,120]
[422081326,1778555457000,-500.0,0.0004118,53]
[422081321,1778555457000,-263.95631916,0.0004118,30]
[422081324,1778555457000,-152.0,0.0004118,120]
[422081331,1778555457000,-168.3888056,0.0004118,53]
[422081327,1778555457000,-257.8035202,0.0004118,53]
[422081328,1778555457000,-500.0,0.0004118,54]
[422081323,1778555457000,-500.0,0.0004118,30]
[422081334,1778555457000,-151.0,0.0004118,54]
[422081332,1778555457000,-151.0,0.0004118,30]
[422081333,1778555457000,-151.0,0.0004118,53]
[422081337,1778555457000,-1756.80044674,0.0004118,53]
[422081335,1778555457000,-2345.0,0.0004118,30]
[422081339,1778555457000,-908.39532448,0.0004118,54]
[422081338,1778555457000,-588.19955326,0.0004118,53]
[422081329,1778555457000,-500.0,0.0004118,120]
[422081402,1778555458000,-255.202259,0.00041183,120]
[422081400,1778555458000,-500.0,0.00041182,120]
[422081397,1778555458000,-500.12186827,0.00041182,120]
[422081394,1778555458000,-500.0,0.00041182,120]
[422081395,1778555458000,-500.0,0.00041182,120]
[422081396,1778555458000,-500.0,0.00041182,120]
[422081405,1778555458000,-255.202259,0.00041183,120]
[422081406,1778555458000,-255.202259,0.00041183,120]
[422081398,1778555458000,-500.0,0.00041182,120]
[422081391,1778555458000,-500.0,0.00041182,120]
[422081392,1778555458000,-500.0,0.00041182,120]
[422081399,1778555458000,-500.0,0.00041182,120]
[422081411,1778555458000,-255.202259,0.00041183,120]
[422081404,1778555458000,-255.202259,0.00041183,120]
[422081403,1778555458000,-255.202259,0.00041183,120]
[422081407,1778555458000,-255.202259,0.00041183,120]
[422081409,1778555458000,-255.202259,0.00041183,120]
[422081408,1778555458000,-255.202259,0.00041183,120]
[422081414,1778555458000,-255.202259,0.00041183,120]
[422081417,1778555458000,-255.202266,0.00041183,120]
[422081410,1778555458000,-255.202259,0.00041183,120]
[422081413,1778555458000,-255.202259,0.00041183,120]
[422081418,1778555458000,-1550.621872,0.00041183,120]
[422081388,1778555458000,-500.0,0.00041182,120]
[422081415,1778555458000,-255.202259,0.00041183,120]
[422081401,1778555458000,-499.74140688,0.00041182,120]
[422081389,1778555458000,-500.0,0.00041182,120]
[422081369,1778555458000,-203.86501493,0.0004118,120]
[422081393,1778555458000,-500.0,0.00041182,120]
[422081412,1778555458000,-255.202259,0.00041183,120]
[422081362,1778555458000,-1359.434225,0.0004117,120]
[422081361,1778555458000,-177.01313548,0.0004117,120]
[422081364,1778555458000,-777.27823248,0.0004118,30]
[422081365,1778555458000,-264.01940454,0.0004118,30]
[422081363,1778555458000,-151.0,0.0004117,120]
[422081371,1778555458000,-168.3888056,0.0004118,53]
[422081366,1778555458000,-182.81273,0.0004118,30]
[422081367,1778555458000,-189.57680101,0.0004118,53]
[422081370,1778555458000,-162.380719,0.0004118,30]
[422081368,1778555458000,-196.59114265,0.0004118,54]
[422081373,1778555458000,-1538.0,0.00041181,14]
[422081372,1778555458000,-174.21697164,0.0004118,54]
[422081378,1778555458000,-196.36174983,0.00041181,14]
[422081376,1778555458000,-151.0,0.00041181,14]
[422081380,1778555458000,-155.69007794,0.00041181,2]
[422081382,1778555458000,-126.86995011,0.00041182,120]
[422081379,1778555458000,-171.2143659,0.00041181,120]
[422081374,1778555458000,-1576.03955263,0.00041181,14]
[422081377,1778555458000,-151.0,0.00041181,14]
[422081381,1778555458000,-622.13755144,0.00041181,2]
[422081375,1778555458000,-1538.0,0.00041181,14]
[422081383,1778555458000,-1024.04884267,0.00041182,120]
[422081385,1778555458000,-187.20201048,0.00041182,120]
[422081384,1778555458000,-94.59052823,0.00041182,120]
[422081386,1778555458000,-500.0,0.00041182,120]
[422081387,1778555458000,-500.0,0.00041182,120]
[422081390,1778555458000,-500.0,0.00041182,120]
[422081416,1778555458000,-255.202259,0.00041183,120]
[422081434,1778555458000,-151.0,0.00041183,30]
[422081419,1778555458000,-1550.621872,0.00041183,120]
[422081454,1778555458000,-253.75218,0.00041183,120]
[422081456,1778555458000,-253.75218,0.00041183,120]
[422081468,1778555458000,-448.648598,0.00041183,120]
[422081455,1778555458000,-253.75218,0.00041183,120]
[422081466,1778555458000,-253.75218,0.00041183,120]
[422081461,1778555458000,-253.75218,0.00041183,120]
[422081457,1778555458000,-253.75218,0.00041183,120]
[422081459,1778555458000,-188.453517,0.00041183,120]
[422081463,1778555458000,-253.75218,0.00041183,120]
[422081464,1778555458000,-253.75218,0.00041183,120]
[422081458,1778555458000,-253.75218,0.00041183,120]
[422081467,1778555458000,-253.752182,0.00041183,120]
[422081451,1778555458000,-253.75218,0.00041183,120]
[422081460,1778555458000,-253.75218,0.00041183,120]
[422081465,1778555458000,-253.75218,0.00041183,120]
[422081469,1778555458000,-448.648598,0.00041183,120]
[422081477,1778555458000,-159.760057,0.00041183,120]
[422081471,1778555458000,-448.648598,0.00041183,120]
[422081470,1778555458000,-448.648598,0.00041183,120]
[422081473,1778555458000,-159.760057,0.00041183,120]
[422081476,1778555458000,-448.648598,0.00041183,120]
[422081478,1778555458000,-448.648593,0.00041183,120]
[422081474,1778555458000,-448.648598,0.00041183,120]
[422081475,1778555458000,-159.760057,0.00041183,120]
[422081472,1778555458000,-448.648598,0.00041183,120]
[422081420,1778555458000,-1550.621872,0.00041183,120]
[422081462,1778555458000,-253.75218,0.00041183,120]
[422081452,1778555458000,-253.75218,0.00041183,120]
[422081453,1778555458000,-253.75218,0.00041183,120]
[422081450,1778555458000,-154.114476,0.00041183,120]
[422081430,1778555458000,-1550.621872,0.00041183,120]
[422081431,1778555458000,-1550.621872,0.00041183,120]
[422081422,1778555458000,-1550.621872,0.00041183,120]
[422081421,1778555458000,-1550.621872,0.00041183,120]
[422081423,1778555458000,-1550.621872,0.00041183,120]
[422081427,1778555458000,-1550.621872,0.00041183,120]
[422081424,1778555458000,-1550.621872,0.00041183,120]
[422081429,1778555458000,-1550.621872,0.00041183,120]
[422081426,1778555458000,-1550.621872,0.00041183,120]
[422081428,1778555458000,-1550.621872,0.00041183,120]
[422081425,1778555458000,-1550.621872,0.00041183,120]
[422081446,1778555458000,-153.940543,0.00041183,120]
[422081439,1778555458000,-200.92,0.00026142,7]
[422081437,1778555458000,-151.0,0.00041183,120]
[422081432,1778555458000,-1550.621872,0.00041183,120]
[422081438,1778555458000,-64.52623917,0.00041183,120]
[422081449,1778555458000,-151.0,0.00041183,120]
[422081448,1778555458000,-151.0,0.00041183,120]
[422081436,1778555458000,-152.225093,0.00041183,30]
[422081447,1778555458000,-250.0,0.00041183,30]
[422081444,1778555458000,-6.59399817,0.00041183,120]
[422081443,1778555458000,-197.102241,0.00041183,120]
[422081442,1778555458000,-151.0,0.00041183,120]
[422081435,1778555458000,-151.0,0.00041183,30]
[422081433,1778555458000,-1550.621877,0.00041183,120]
[422081441,1778555458000,-151.0,0.00041183,120]
[422081440,1778555458000,-86.47376083,0.00041183,120]
[422081445,1778555458000,-144.40600183,0.00041183,120]
[422081480,1778555459000,-159.760057,0.00041183,120]
[422081479,1778555459000,-159.760057,0.00041183,120]
[422081481,1778555459000,-159.760057,0.00041183,120]
[422081483,1778555459000,-159.760066,0.00041183,120]
[422081482,1778555459000,-159.760057,0.00041183,120]
[422081491,1778555459000,-435.78557919,0.00041183,120]
[422081485,1778555459000,-501.694731,0.00041183,120]
[422081490,1778555459000,-11206.64042076,0.00041183,120]
[422081484,1778555459000,-501.694731,0.00041183,120]
[422081489,1778555459000,-151.0,0.00041183,120]
[422081487,1778555459000,-501.694731,0.00041183,120]
[422081486,1778555459000,-501.694731,0.00041183,120]
[422081488,1778555459000,-151.0,0.00041183,120]
[422081494,1778555459000,-345.20115517,0.00041183,120]
[422081493,1778555459000,-200.92,0.00026171,7]
[422081492,1778555459000,-395.64302899,0.00019,2]
[422081497,1778555781000,118.14294248,0.0001,30]
[422081496,1778555781000,97.40352794,0.0001,30]
[422081498,1778555932000,3000.02,0.00027,120]
[422081532,1778556632000,-397.0,0.0002,2]
[422081530,1778556632000,-156.83,0.00018652,2]
[422081531,1778556632000,-207.0,0.0002,2]
[422081529,1778556632000,-600.0,0.00018525,7]
[422081533,1778556632000,-156.83,0.00020473,2]
[422081535,1778556632000,-189.66,0.00020742,2]
[422081538,1778556632000,-397.0,0.00021,2]
[422081536,1778556632000,-300.0,0.00020742,2]
[422081537,1778556632000,-207.0,0.00021,2]
[422081545,1778556632000,-209.18,0.00022063,2]
[422081539,1778556632000,-343.0,0.00021,2]
[422081540,1778556632000,-166.66,0.00021698,2]
[422081528,1778556632000,-1500.0,0.00018525,2]
[422081541,1778556632000,-187.04,0.00021888,2]
[422081544,1778556632000,-397.0,0.00022,2]
[422081542,1778556632000,-2731.56,0.00021984,2]
[422081543,1778556632000,-207.0,0.00022,2]
[422081546,1778556632000,-220.59,0.00022067,2]
[422081549,1778556632000,-2347.25,0.00022223,2]
[422081551,1778556632000,-5000.0,0.00022409,2]
[422081534,1778556632000,-150.0,0.0002052,2]
[422081522,1778556632000,-2351.0,0.00015132,2]
[422081523,1778556632000,-163.9987,0.00015637,5]
[422081525,1778556632000,-220.82,0.00016712,2]
[422081550,1778556632000,-156.83,0.00022294,2]
[422081503,1778556632000,-156.83,0.0001137,2]
[422081505,1778556632000,-250.0,0.00011938,2]
[422081504,1778556632000,-383.70157659,0.00011838,2]
[422081507,1778556632000,-1200.0,0.00012506,2]
[422081506,1778556632000,-300.0,0.00012506,2]
[422081508,1778556632000,-250.0,0.00012507,2]
[422081509,1778556632000,-4054.94460273,0.00012507,2]
[422081510,1778556632000,-250.0,0.00012507,2]
[422081511,1778556632000,-156.83,0.0001319,2]
[422081515,1778556632000,-184.95,0.0001372,2]
[422081513,1778556632000,-184.95,0.00013699,2]
[422081512,1778556632000,-500.0,0.00013568,2]
[422081514,1778556632000,-184.95,0.00013699,2]
[422081519,1778556632000,-184.95,0.00014,2]
[422081518,1778556632000,-163.9987,0.00013837,2]
[422081520,1778556632000,-250.0,0.00014,2]
[422081517,1778556632000,-1680.0,0.00013756,2]
[422081521,1778556632000,-156.83,0.00015011,2]
[422081526,1778556632000,-156.83,0.00016832,2]
[422081524,1778556632000,-3292.0,0.00016645,2]
[422081527,1778556632000,-402.53,0.000183,2]
[422081548,1778556632000,-166.66,0.00022155,30]
[422081575,1778556632000,-200.0,0.0002379,2]
[422081552,1778556632000,-1545.89,0.00022414,2]
[422081579,1778556632000,-397.0,0.00024,2]
[422081580,1778556632000,-150.0,0.00024034,4]
[422081581,1778556632000,-38753.23652602,0.00024164,2]
[422081582,1778556632000,-4644.21,0.00024174,2]
[422081584,1778556632000,-9999.99,0.00024174,2]
[422081583,1778556632000,-299.99,0.00024174,7]
[422081585,1778556632000,-9999.99,0.00024174,2]
[422081588,1778556632000,-163.07942635,0.00024319,2]
[422081587,1778556632000,-150.0,0.00024298,4]
[422081586,1778556632000,-2731.56,0.00024182,2]
[422081589,1778556632000,-503.0,0.00024397,2]
[422081590,1778556632000,-150.0,0.0002443,4]
[422081591,1778556632000,-163.07942636,0.00024535,2]
[422081592,1778556632000,-150.0,0.00024562,4]
[422081547,1778556632000,-150.0,0.00022101,2]
[422081595,1778556632000,-150.0,0.00024826,4]
[422081597,1778556632000,-156.26,0.0002484,7]
[422081599,1778556632000,-208.2157166,0.00024849,2]
[422081596,1778556632000,-156.72,0.0002484,7]
[422081594,1778556632000,-156.26,0.00024658,2]
[422081598,1778556632000,-214.86625456,0.00024849,2]
[422081577,1778556632000,-166.66,0.00023982,30]
[422081578,1778556632000,-207.0,0.00024,2]
[422081593,1778556632000,-156.72,0.00024658,2]
[422081574,1778556632000,-150.0,0.0002377,2]
[422081576,1778556632000,-467.23,0.00023912,2]
[422081553,1778556632000,-500.0,0.00022414,2]
[422081555,1778556632000,-166.66,0.00022612,30]
[422081554,1778556632000,-2731.56,0.00022533,2]
[422081557,1778556632000,-161.92,0.0002284,2]
[422081560,1778556632000,-397.0,0.00023,2]
[422081564,1778556632000,-314.55,0.00023104,2]
[422081562,1778556632000,-400.0,0.00023083,2]
[422081558,1778556632000,-9055.19,0.00022986,2]
[422081561,1778556632000,-166.66,0.00023068,30]
[422081556,1778556632000,-500.0,0.00022688,2]
[422081563,1778556632000,-2731.56,0.00023083,2]
[422081559,1778556632000,-207.0,0.00023,2]
[422081572,1778556632000,-150.0,0.0002377,2]
[422081573,1778556632000,-150.0,0.0002377,2]
[422081570,1778556632000,-150.44823979,0.0002377,2]
[422081571,1778556632000,-150.0,0.0002377,2]
[422081567,1778556632000,-152.49588795,0.0002377,2]
[422081568,1778556632000,-150.0,0.0002377,2]
[422081565,1778556632000,-166.66,0.00023525,30]
[422081566,1778556632000,-2731.56,0.00023633,2]
[422081569,1778556632000,-166.61686361,0.0002377,2]
[422081619,1778556633000,-151.53,0.00026027,2]
[422081618,1778556633000,-400.0,0.00025968,2]
[422081620,1778556633000,-151.53,0.00026081,7]
[422081622,1778556633000,-150.0,0.00026147,4]
[422081621,1778556633000,-151.53,0.00026136,2]
[422081623,1778556633000,-151.53,0.00026191,2]
[422081629,1778556633000,-5000.0,0.00026332,2]
[422081626,1778556633000,-866.61765343,0.00026322,2]
[422081625,1778556633000,-151.53,0.00026301,7]
[422081624,1778556633000,-151.53,0.00026246,7]
[422081628,1778556633000,-9735.2569,0.00026322,2]
[422081630,1778556633000,-2500.0,0.00026332,2]